lending/lending_fUSD_20250516
["ID","MTS","AMOUNT","RATE_DAILY","PERIOD"]
[361233266,1747377032108,-4790.09504496,0.00011,2]
[361233267,1747377032119,-445.49189213,0.00011,2]
[361233268,1747377032153,-10622.16061818,0.00011,2]
[361233269,1747377032164,-422.27161926,0.00011,2]
[361233270,1747377032176,-2840.47319302,0.00011,2]
[361233271,1747377032190,-4135.58284015,0.00011,2]
[361233273,1747377037356,-121704.44695189,0.00011,2]
[361233274,1747377037369,-1632.98765464,0.00011,2]
[361233275,1747377037575,-6624.34232086,0.00011,2]
[361233276,1747377037587,-36663.79741104,0.00011,2]
[361233281,1747377039473,-520842.82734725,0.00011,2]
[361233282,1747377039482,-227.66965448,0.00011421,2]
[361233283,1747377039492,-23900.0,0.00011425,2]
[361233284,1747377039501,-1002.6618643,0.00011521,2]
[361233285,1747377039511,-500.0,0.00011521,2]
[361233286,1747377039520,-538.15,0.00011596,2]
[361233287,1747377039529,-227.66965445,0.00011663,2]
[361233288,1747377039538,-150.0,0.00011688,2]
[361233289,1747377039548,-150.0,0.00011688,2]
[361233290,1747377039557,-1167.9974,0.00011718,2]
[361233291,1747377039566,-1000.0,0.00011831,2]
[361233292,1747377039575,-209.39,0.00011868,2]
[361233293,1747377039584,-452.59424141,0.000119,2]
[361233294,1747377039594,-161.29,0.00011902,2]
[361233295,1747377039603,-227.66965445,0.00011905,2]
[361233296,1747377039612,-250.0,0.0001197,2]
[361233297,1747377039621,-1500.0,0.00012,3]
[361233298,1747377039630,-48322.21874766,0.00012,2]
[361233299,1747377039639,-825.0,0.00012069,2]
[361233300,1747377039649,-465.75,0.0001213,2]
[361233301,1747377039658,-200.0,0.00012132,2]
[361233302,1747377039668,-227.66965445,0.00012147,2]
[361233303,1747377039678,-452.59424129,0.00012176,2]
[361233304,1747377039687,-184.54,0.00012216,2]
[361233305,1747377039696,-335.64502532,0.00012271,2]
[361233306,1747377039705,-207.4,0.00012349,2]
[361233307,1747377039715,-1000.0,0.00012349,2]
[361233308,1747377039724,-9469.94610629,0.0001235,2]
[361233309,1747377039733,-10431.81685574,0.0001235,2]
[361233310,1747377039742,-1510.81,0.00012366,2]
[361233311,1747377039752,-227.66965445,0.00012389,2]
[361233312,1747377039761,-150.0,0.00012391,2]
[361233313,1747377039770,-452.59424129,0.00012452,2]
[361233314,1747377039779,-200.0,0.0001249,2]
[361233315,1747377039788,-227.66965445,0.00012631,2]
[361233316,1747377039798,-452.59424129,0.00012728,2]
[361233317,1747377039807,-227.66965445,0.00012873,2]
[361233318,1747377039816,-500.0,0.00012877,2]
[361233319,1747377039825,-500.0,0.00012877,2]
[361233320,1747377039835,-500.0,0.00012877,2]
[361233321,1747377039844,-500.0,0.00012877,2]
[361233322,1747377039853,-159.8151524,0.00012877,2]
[361233323,1747377039862,-500.0,0.00012877,2]
[361233324,1747377039871,-1507.928,0.00012896,2]
[361233325,1747377039880,-572.58331277,0.00012896,2]
[361233326,1747377039889,-500.0,0.00012896,2]
[361233327,1747377039898,-200.0,0.00012896,2]
[361233328,1747377039907,-1037.0,0.00012897,2]
[361233329,1747377039917,-173.17623366,0.000129,2]
[361233330,1747377039925,-2009.34,0.000129,2]
[361233331,1747377039935,-223.98164544,0.000129,2]
[361233333,1747377039944,-730.546509,0.00012934,2]
[361233334,1747377039953,-151.0,0.00012965,2]
[361233335,1747377039962,-668.65185757,0.00012965,2]
[361233336,1747377039971,-500.0,0.00012973,2]
[361233337,1747377039980,-500.0,0.00012973,2]
[361233338,1747377039989,-505.71531887,0.00012973,2]
[361233339,1747377039999,-182.17980349,0.0001299,2]
[361233340,1747377040008,-182.17980349,0.0001299,2]
[361233341,1747377040019,-182.17980349,0.0001299,2]
[361233342,1747377040028,-2003.365,0.00012995,2]
[361233343,1747377040037,-2071.07205011,0.00012995,2]
[361233344,1747377040046,-26032.2170087,0.00012995,2]
[361233345,1747377040056,-5655.730028,0.00012995,2]
[361233346,1747377040065,-10422.7185419,0.00012995,2]
[361233347,1747377040075,-1245.4064459,0.00012995,2]
[361233348,1747377040084,-187593.7631007,0.00012995,2]
[361233349,1747377040094,-173.676,0.00012995,2]
[361233350,1747377040103,-877.55111494,0.00012999,2]
[361233351,1747377040113,-1177.90637487,0.00012999,2]
[361233352,1747377040158,-2012.24320504,0.00012999,2]
[361233353,1747377040169,-1750.93797252,0.00012999,2]
[361233354,1747377040179,-10749.06202748,0.00012999,2]
[361233355,1747377040190,-259.54,0.00012999,2]
[361233356,1747377040221,-1003.63905653,0.00012999,2]
[361233357,1747377040232,-9243.95423337,0.00012999,2]
[361233358,1747377040243,-609.5,0.00012999,2]
[361233359,1747377040254,-2597.75,0.00012999,2]
[361233360,1747377040265,-5710.6826121,0.00012999,2]
[361233361,1747377040274,-60259.71416338,0.00013,2]
[361233362,1747377040283,-273884.13856388,0.00013,2]
[361233363,1747377040317,-2210.72110966,0.00013,2]
[361233364,1747377040328,-487.45,0.00013,2]
[361233369,1747377042485,-187.08023611,0.000129,2]
[361233370,1747377042495,-2111694.86396815,0.00013,2]
[361233371,1747377042571,-432.06190101,0.00013,2]
[361233372,1747377042646,-2239.10260521,0.00013,2]
[361233373,1747377042658,-962.87448771,0.00013,2]
[361233374,1747377042669,-2088.9,0.00013,2]
[361233375,1747377043871,-1374.5654,0.00013,2]
[361233376,1747377043883,-2644.471368,0.00013,2]
[361233377,1747377043895,-22485.96120294,0.00013,2]
[361233378,1747377045818,-1859.1,0.00013,2]
[361233379,1747377122236,-423.09298582,0.0001,2]
[361233383,1747377126121,-26.90701418,0.0001,2]
[361233387,1747377260489,959.69,0.00027397,120]
[361233388,1747377728049,150.0,0.00012046,7]
[361233409,1747377855168,5561.55469576,0.00025,30]
[361233435,1747378231883,-1240.83735757,0.00010336,2]
[361233436,1747378231895,-165.93264243,0.00010336,2]
[361233437,1747378231904,-251.18932591,0.00011731,2]
[361233447,1747378237617,-422.21196009,0.00011731,2]
[361233448,1747378237627,-747.7781,0.0001179,2]
[361233449,1747378237636,-209.39,0.00011829,2]
[361233450,1747378237645,-500.0,0.0001189,2]
[361233451,1747378237655,-4851.53,0.00011924,2]
[361233452,1747378237664,-608.73993991,0.00011999,2]
[361233453,1747378237722,-591.26006009,0.00011999,2]
[361233454,1747378237732,-500.0,0.00012,2]
[361233455,1747378237741,-1000.0,0.00012042,2]
[361233456,1747378237751,-250.0,0.0001227,2]
[361233457,1747378237760,-300.0,0.0001234,2]
[361233458,1747378237770,-803.51,0.00012341,2]
[361233459,1747378237780,-150.0,0.0001242,2]
[361233460,1747378237789,-1000.0,0.00012519,2]
[361233461,1747378237800,-207.4,0.00012519,2]
[361233462,1747378237810,-3343.9379118,0.00012526,2]
[361233463,1747378237832,-512.73,0.00012544,2]
[361233464,1747378237846,-1406.77,0.000126,2]
[361233465,1747378237865,-166.81,0.00012663,2]
[361233466,1747378237883,-226.7928,0.00012893,2]
[361233467,1747378237900,-2059.2124,0.00012896,2]
[361233468,1747378237914,-18.23795034,0.00012896,2]
[361233469,1747378237935,-181.76204966,0.00012896,2]
[361233470,1747378237952,-1602.692,0.00012899,2]
[361233471,1747378237969,-173.676,0.00012899,2]
[361233472,1747378237987,-2071.07205011,0.00012899,2]
[361233473,1747378238003,-173.17623364,0.000129,2]
[361233474,1747378238021,-13.99065424,0.000129,2]
[361233478,1747378240040,-572.58331277,0.00012899,2]
[361233479,1747378240053,-467.51668723,0.000129,2]
[361233480,1747378240106,-1000.0,0.000129,2]
[361233481,1747378240272,-39307.39765853,0.000129,2]
[361233482,1747378240281,-191.98426752,0.000129,2]
[361233483,1747378240291,-170.75224086,0.000129,2]
[361233484,1747378240301,-943.88462506,0.000129,2]
[361233485,1747378240311,-409.65581328,0.000129,2]
[361233486,1747378240320,-668.6245456,0.00012934,2]
[361233487,1747378240330,-500.0,0.00012973,2]
[361233488,1747378240339,-166.72,0.00012986,2]
[361233489,1747378240348,-151.0,0.00012988,2]
[361233490,1747378240358,-668.65185757,0.00012988,2]
[361233491,1747378240367,-166.72,0.0001299,2]
[361233492,1747378240376,-1238.91820746,0.00012992,2]
[361233493,1747378240386,-1238.91820746,0.00012992,2]
[361233495,1747378240773,-1238.91820746,0.00012992,2]
[361233496,1747378240823,-1238.91820746,0.00012992,2]
[361233497,1747378240850,-1238.91820746,0.00012992,2]
[361233498,1747378240860,-1238.91820746,0.00012992,2]
[361233499,1747378240869,-1238.91820746,0.00012992,2]
[361233500,1747378240879,-1238.91820742,0.00012992,2]
[361233501,1747378240888,-500.0,0.00012993,2]
[361233502,1747378240898,-500.0,0.00012993,2]
[361233503,1747378240907,-500.0,0.00012993,2]
[361233504,1747378240916,-500.0,0.00012993,2]
[361233505,1747378240925,-500.0,0.00012993,2]
[361233506,1747378240934,-500.0,0.00012993,2]
[361233507,1747378240943,-500.0,0.00012993,2]
[361233508,1747378240952,-500.0,0.00012993,2]
[361233509,1747378240963,-500.0,0.00012993,2]
[361233510,1747378240971,-500.0,0.00012993,2]
[361233511,1747378240981,-500.0,0.00012993,2]
[361233512,1747378240990,-500.0,0.00012993,2]
[361233513,1747378240999,-500.0,0.00012993,2]
[361233514,1747378241009,-500.0,0.00012993,2]
[361233515,1747378241018,-500.0,0.00012993,2]
[361233516,1747378241027,-500.0,0.00012993,2]
[361233517,1747378241036,-18.8425971,0.00012993,2]
[361233519,1747378242771,-650.0,0.00012896,2]
[361233520,1747378242971,-770.69613598,0.00012896,2]
[361233521,1747378242983,-610.98651663,0.00012896,2]
[361233522,1747378242994,-468.31734739,0.00012896,2]
[361233523,1747378243003,-173.22364019,0.000129,2]
[361233524,1747378243013,-481.1574029,0.00012993,2]
[361233525,1747378243023,-102.70610294,0.00012993,2]
[361233526,1747378243034,-411.29576141,0.00012993,2]
[361233532,1747378243294,-500.0,0.00012993,2]
[361233533,1747378243304,-500.0,0.00012993,2]
[361233534,1747378243314,-500.0,0.00012993,2]
[361233535,1747378243323,-500.0,0.00012993,2]
[361233536,1747378243332,-81.80423859,0.00012993,2]
[361233539,1747378245700,-463.32688651,0.00012362,2]
[361234077,1747378471990,1000.0,0.00027,120]
[361234078,1747378489872,481.23786918,0.00016,14]
[361234079,1747378574249,405.89824668,0.00025,30]
[361234080,1747378831736,858.02745649,0.00027397,120]
[361234081,1747378900216,532.47,0.00021945,30]
[361234082,1747378946566,-258.59546464,0.0001,2]
[361234083,1747378949282,-191.40453536,0.0001,2]
[361234084,1747378973143,150.0,0.00011696,7]
[361234085,1747379138538,5000.0,0.00025,30]
[361234089,1747379250685,5061.8101,0.00024,30]
[361234090,1747379255586,5061.8101,0.0002375,30]
[361234091,1747379260713,5061.8101,0.000225,30]
[361234093,1747379431897,-350.0,0.00010135,2]
[361234094,1747379431909,-545.44642781,0.00010135,2]
[361234095,1747379431921,-497.23357219,0.00010135,2]
[361234096,1747379431931,-200.0,0.00010642,2]
[361234097,1747379431941,-174.719782,0.00011049,2]
[361234098,1747379431952,-15.14274607,0.00011149,2]
[361234099,1747379431969,-184.85725393,0.00011149,2]
[361234100,1747379431979,-200.0,0.00011149,2]
[361234101,1747379431988,-200.0,0.00011149,2]
[361234102,1747379431999,-150.0,0.00011419,2]
[361234103,1747379432008,-184.54,0.00011461,2]
[361234104,1747379432018,-4000.0,0.00011664,2]
[361234105,1747379432027,-825.0,0.00011675,2]
[361234106,1747379432037,-300.0,0.00011676,2]
[361234107,1747379432047,-173.0,0.00011676,2]
[361234108,1747379432056,-6446.1,0.00011678,2]
[361234109,1747379432067,-1000.0,0.00011764,2]
[361234110,1747379432077,-200.62,0.00011778,2]
[361234111,1747379432087,-250.0,0.00011824,2]
[361234112,1747379432098,-500.0,0.00012,2]
[361234113,1747379432112,-445.76,0.00012201,2]
[361234114,1747379432122,-200.0,0.000123,4]
[361234115,1747379432132,-179.51,0.00012306,2]
[361234116,1747379432143,-19901.76296203,0.0001235,2]
[361234117,1747379432153,-2571.39311349,0.00012362,2]
[361234119,1747379432163,-1000.0,0.00012392,2]
[361234120,1747379432174,-207.4,0.00012392,2]
[361234121,1747379432185,-1392.68,0.00012399,2]
[361234122,1747379432205,-11135.02336655,0.00012399,2]
[361234123,1747379432257,-525.97462945,0.00012399,2]
[361234124,1747379432269,-755.86677108,0.00012399,2]
[361234125,1747379432281,-1401.841098,0.00012399,2]
[361234192,1747379437910,-1240.07,0.00012399,2]
[361234193,1747379438024,-3229.23732841,0.00012399,2]
[361234194,1747379438152,-3439.0,0.00012399,2]
[361234205,1747379440133,-2174.10680651,0.00012399,2]
[361234206,1747379440142,-500.0,0.000124,4]
[361234207,1747379440153,-800.0,0.000125,4]
[361234208,1747379440163,-1100.0,0.000126,4]
[361234209,1747379440172,-565.82507816,0.000126,2]
[361234210,1747379440182,-172.85706746,0.00012642,2]
[361234211,1747379440193,-7432.03681166,0.00012667,2]
[361234212,1747379440202,-7432.03681165,0.00012693,2]
[361234213,1747379440212,-445427.2087884,0.00012699,2]
[361234214,1747379440222,-1400.0,0.000127,4]
[361234215,1747379440232,-1203.273,0.000127,2]
[361234216,1747379440244,-154.0,0.000127,2]
[361234217,1747379440254,-880.0,0.000127,2]
[361234218,1747379440264,-209.07,0.00012712,2]
[361234219,1747379440276,-209.07,0.00012712,2]
[361234220,1747379440286,-7432.03681165,0.00012719,2]
[361234221,1747379440296,-209.07,0.00012734,2]
[361234222,1747379440305,-209.07,0.00012734,2]
[361234223,1747379440315,-209.07,0.00012734,2]
[361234224,1747379440324,-209.07,0.00012734,2]
[361234225,1747379440334,-721.57469669,0.00012742,2]
[361234226,1747379440344,-364.87099523,0.00012743,2]
[361234227,1747379440353,-7432.03681165,0.00012745,2]
[361234228,1747379440363,-209.07,0.00012757,2]
[361234229,1747379440372,-209.07,0.00012757,2]
[361234230,1747379440382,-209.07,0.00012757,2]
[361234231,1747379440392,-209.07,0.00012757,2]
[361234232,1747379440402,-7432.03681165,0.00012771,2]
[361234233,1747379440411,-223.14919002,0.00012778,2]
[361234234,1747379440422,-93708.25013657,0.00012789,2]
[361234235,1747379440431,-1149.27719321,0.0001279,2]
[361234236,1747379440441,-151.0,0.00012792,2]
[361234237,1747379440450,-668.65185757,0.00012792,2]
[361234238,1747379440460,-296.77024812,0.00012792,2]
[361234239,1747379440470,-7432.03681165,0.00012796,2]
[361234240,1747379440479,-200.0,0.000128,4]
[361234241,1747379440489,-93708.25013657,0.00012811,2]
[361234242,1747379440500,-853.73225352,0.00012816,2]
[361234244,1747379440509,-420.0,0.00012822,2]
[361234247,1747379440519,-7432.03681165,0.00012822,2]
[361234249,1747379440529,-312.95327873,0.00012823,2]
[361234251,1747379440539,-91763.28844552,0.00012833,2]
[361234252,1747379440553,-596.76669111,0.00012833,2]
[361234256,1747379440690,-1348.19499994,0.00012833,2]
[361234257,1747379440700,-284.81473583,0.00012848,2]
[361234258,1747379440728,-7147.22207582,0.00012848,2]
[361234259,1747379440737,-93708.25013657,0.00012856,2]
[361234260,1747379440747,-7432.03681165,0.00012874,2]
[361234261,1747379440756,-500.0,0.00012877,2]
[361234262,1747379440765,-500.0,0.00012877,2]
[361234263,1747379440775,-500.0,0.00012877,2]
[361234264,1747379440784,-500.0,0.00012877,2]
[361234265,1747379440793,-159.8151524,0.00012877,2]
[361234266,1747379440803,-500.0,0.00012877,2]
[361234267,1747379440814,-93708.25013657,0.00012878,2]
[361234268,1747379440823,-154.435168,0.00012878,2]
[361234269,1747379440832,-151.0,0.00012878,2]
[361234270,1747379440842,-272.940722,0.00012878,2]
[361234271,1747379440851,-272.940722,0.00012878,2]
[361234272,1747379440860,-151.0,0.00012878,2]
[361234273,1747379440869,-156.489221,0.00012878,2]
[361234274,1747379440879,-156.489221,0.00012878,2]
[361234275,1747379440888,-211.225517,0.00012878,2]
[361234276,1747379440897,-211.225517,0.00012878,2]
[361234277,1747379440906,-151.0,0.00012878,2]
[361234278,1747379440916,-151.0,0.00012878,2]
[361234279,1747379440925,-151.0,0.00012878,2]
[361234280,1747379440935,-151.0,0.00012878,2]
[361234281,1747379440944,-151.0,0.00012878,2]
[361234282,1747379440954,-151.0,0.00012878,2]
[361234283,1747379440963,-151.0,0.00012878,2]
[361234284,1747379440972,-151.0,0.00012878,2]
[361234285,1747379440982,-151.653954,0.00012878,2]
[361234286,1747379440991,-151.0,0.00012878,2]
[361234287,1747379441001,-1971.884942,0.00012878,2]
[361234288,1747379441011,-155.761939,0.00012878,2]
[361234289,1747379441020,-151.0,0.00012878,2]
[361234290,1747379441030,-1971.884942,0.00012878,2]
[361234291,1747379441040,-151.0,0.00012878,2]
[361234292,1747379441049,-151.882292,0.00012878,2]
[361234293,1747379441059,-151.0,0.00012878,2]
[361234294,1747379441071,-151.0,0.00012878,2]
[361234295,1747379441080,-382.7996,0.00012896,2]
[361234296,1747379441090,-426.42,0.00012896,2]
[361234297,1747379441099,-500.0,0.00012896,2]
[361234298,1747379441109,-1000.0,0.00012896,2]
[361234299,1747379441119,-500.0,0.00012896,2]
[361234300,1747379441129,-200.0,0.00012896,2]
[361234301,1747379441138,-20577.06395269,0.000129,2]
[361234303,1747379442897,-270.59084422,0.000127,2]
[361234304,1747379442909,-2052.71380054,0.000127,2]
[361234305,1747379442922,-986.36681881,0.000127,2]
[361234306,1747379443025,-2631.32853643,0.000127,2]
[361234307,1747379443036,-5168.67146357,0.000129,2]
[361234308,1747379443147,-22669.56808374,0.000129,2]
[361234309,1747379443157,-78057.03289684,0.000129,2]
[361234310,1747379443167,-181.44713771,0.000129,2]
[361234311,1747379443177,-398.07264595,0.000129,2]
[361234312,1747379443187,-1682.826,0.000129,2]
[361234313,1747379443201,-93708.25013657,0.000129,2]
[361234314,1747379443211,-2370.45,0.000129,2]
[361234315,1747379443219,-200.0,0.000129,4]
[361234316,1747379443228,-172.85706745,0.000129,2]
[361234317,1747379443238,-476.32928818,0.000129,2]
[361234318,1747379443247,-7432.03681165,0.000129,2]
[361234319,1747379443257,-850.39375974,0.000129,2]
[361234320,1747379443267,-1382.0,0.000129,2]
[361234321,1747379443282,-248.02792338,0.000129,2]
[361234322,1747379443292,-1172.890309,0.00012934,2]
[361234323,1747379443302,-1037.0,0.0001294,2]
[361234324,1747379443312,-500.0,0.00012973,2]
[361234325,1747379443326,-500.0,0.00012973,2]
[361234326,1747379443337,-505.71531887,0.00012973,2]
[361234327,1747379443347,-500.0,0.00012973,2]
[361234328,1747379443357,-10536.780436,0.00012987,2]
[361234329,1747379443367,-9767.4845832,0.00012987,2]
[361234330,1747379443377,-312.95327873,0.0001299,2]
[361234331,1747379443386,-312.95327873,0.0001299,2]
[361234332,1747379443395,-10490.9230335,0.00012991,2]
[361234333,1747379443404,-8186.6361614,0.00012991,2]
[361234334,1747379443414,-151.0,0.00012991,2]
[361234335,1747379443423,-151.0,0.00012991,2]
[361234336,1747379443432,-280.260479,0.00012991,2]
[361234337,1747379443442,-152.223776,0.00012991,2]
[361234339,1747379443451,-396.0898385,0.00012993,2]
[361234340,1747379443460,-173.874019,0.00012996,2]
[361234342,1747379443469,-152.30355,0.00012996,2]
[361234343,1747379443478,-239.72,0.00012996,2]
[361234344,1747379443488,-151.0,0.00012996,2]
[361234345,1747379443497,-151.0,0.00012996,2]
[361234347,1747379443506,-151.0,0.00012996,2]
[361234349,1747379443516,-151.0,0.00012996,2]
[361234351,1747379443525,-151.0,0.00012996,2]
[361234352,1747379443534,-151.0,0.00012996,2]
[361234353,1747379443543,-151.0,0.00012996,2]
[361234354,1747379443551,-151.0,0.00012996,2]
[361234355,1747379443560,-156.555302,0.00012996,2]
[361234356,1747379443572,-209.49985,0.00012996,2]
[361234357,1747379443581,-209.49985,0.00012996,2]
[361234358,1747379443591,-151.0,0.00012996,2]
[361234359,1747379443599,-151.0,0.00012996,2]
[361234360,1747379443608,-151.0,0.00012996,2]
[361234361,1747379443618,-151.0,0.00012996,2]
[361234362,1747379443627,-151.0,0.00012996,2]
[361234363,1747379443636,-151.0,0.00012996,2]
[361234364,1747379443645,-151.0,0.00012996,2]
[361234365,1747379443654,-151.0,0.00012996,2]
[361234366,1747379443663,-482.388603,0.00012996,2]
[361234367,1747379443672,-470.120301,0.00012996,2]
[361234368,1747379443681,-482.388603,0.00012996,2]
[361234369,1747379443690,-470.120301,0.00012996,2]
[361234370,1747379443699,-151.0,0.00012996,2]
[361234371,1747379443709,-151.0,0.00012996,2]
[361234372,1747379443717,-202.342714,0.00012996,2]
[361234373,1747379443727,-202.342714,0.00012996,2]
[361234374,1747379443736,-151.0,0.00012996,2]
[361234375,1747379443745,-151.0,0.00012996,2]
[361234376,1747379443754,-168.838179,0.00012996,2]
[361234377,1747379443763,-168.838179,0.00012996,2]
[361234378,1747379443772,-151.0,0.00012996,2]
[361234379,1747379443782,-272.940722,0.00012996,2]
[361234380,1747379443791,-272.940722,0.00012996,2]
[361234381,1747379443800,-151.0,0.00012996,2]
[361234382,1747379443809,-156.489221,0.00012996,2]
[361234383,1747379443821,-156.489221,0.00012996,2]
[361234384,1747379443830,-211.225517,0.00012996,2]
[361234385,1747379443839,-211.225517,0.00012996,2]
[361234386,1747379443849,-151.0,0.00012996,2]
[361234387,1747379443859,-151.0,0.00012996,2]
[361234388,1747379443868,-153.390238,0.00012996,2]
[361234389,1747379443877,-151.0,0.00012996,2]
[361234390,1747379443886,-151.0,0.00012996,2]
[361234391,1747379443895,-151.0,0.00012996,2]
[361234392,1747379443905,-1971.884942,0.00012996,2]
[361234393,1747379443914,-151.0,0.00012996,2]
[361234394,1747379443923,-1971.884942,0.00012996,2]
[361234395,1747379443934,-151.0,0.00012996,2]
[361234396,1747379443943,-268.881996,0.00012996,2]
[361234397,1747379443952,-1177.90637487,0.00012999,2]
[361234398,1747379443961,-196866.28341548,0.00013,2]
[361234399,1747379443973,-200167.34115515,0.00013,2]
[361234400,1747379443982,-117128.20555695,0.00013,2]
[361234401,1747379443993,-658.37860201,0.00013,2]
[361234404,1747379445963,-341.77000004,0.00013,2]
[361234407,1747379447003,-26645.9814055,0.00013,2]
[361234408,1747379450910,-266374.61318333,0.00013,2]
[361234409,1747379450943,-990701.75801244,0.00013,2]
[361234410,1747379450953,-150.0,0.00013,2]
[361234411,1747379450963,-1067220.44403929,0.00013,2]
[361234412,1747379450972,-150.0,0.00013,2]
[361234413,1747379450981,-180.1166915,0.00013,2]
[361234414,1747379450991,-150.0,0.00013,2]
[361234415,1747379451000,-150.0,0.00013,2]
[361234416,1747379451010,-150.0,0.00013,2]
[361234417,1747379451019,-1921.02244899,0.00013,2]
[361234418,1747379451028,-1374.9997353,0.00013,2]
[361234419,1747379451038,-1790.70021061,0.00013,2]
[361234420,1747379451047,-49954.84782333,0.00013,2]
[361234421,1747379451057,-201.14,0.00013,2]
[361234422,1747379451066,-123501.30926208,0.00013,2]
[361234423,1747379451080,-866.3291092,0.00013,2]
[361234424,1747379451092,-4795.2,0.00013,2]
[361234425,1747379451103,-2856.1679958,0.00013,2]
[361234426,1747379451115,-7349.88311069,0.00013,2]
[361234427,1747379532361,255783.0,0.00027397,120]
[361234428,1747379569274,3000.0,0.00025,30]
[361234429,1747379602007,3000.0,0.00025,30]
[361234430,1747379640846,3067.0,0.00025,30]
[361234431,1747379732096,480.0,0.00025,30]
[361234432,1747379757280,468.91289227,0.00025,30]
[361234433,1747379826189,-203.68250065,9.964e-05,2]
[361234434,1747379829742,-178.69324188,9.964e-05,2]
[361234435,1747379835392,-280.21717254,9.964e-05,2]
[361234436,1747379836455,-153.08160748,9.964e-05,2]
[361234437,1747379839195,-245.49792915,9.964e-05,2]
[361234438,1747379840790,-179.04751958,9.964e-05,2]
[361234439,1747379842823,-38.99002872,9.964e-05,2]
[361234440,1747379936167,465.91,0.00021945,30]
[361234443,1747380257437,1500.0,0.00025,30]
[361234444,1747380278376,150.0,0.000125,5]
[361234445,1747380378272,1776.02320121,0.000209,30]
[361234448,1747380503672,150.0,0.00011657,7]
[361234467,1747380632388,-209.07,0.0001099,2]
[361234468,1747380632397,-209.07,0.0001099,2]
[361234469,1747380632408,-209.07,0.0001099,2]
[361234470,1747380632418,-300.0,0.00010998,2]
[361234471,1747380632427,-1200.0,0.00010998,2]
[361234472,1747380632436,-410.64000536,0.00010999,2]
[361234473,1747380632449,-831.16912272,0.00010999,2]
[361234474,1747380632459,-500.0,0.00010999,2]
[361234475,1747380632468,-500.0,0.00010999,2]
[361234476,1747380632477,-500.0,0.00010999,2]
[361234477,1747380632487,-500.0,0.00010999,2]
[361234479,1747380632497,-500.0,0.00010999,2]
[361234481,1747380632507,-500.0,0.00010999,2]
[361234482,1747380632516,-500.0,0.00010999,2]
[361234483,1747380632526,-60.17078825,0.00010999,2]
[361234484,1747380632537,-439.82921175,0.00010999,2]
[361234485,1747380632547,-500.0,0.00010999,2]
[361234486,1747380632556,-500.0,0.00010999,2]
[361234487,1747380632566,-500.0,0.00010999,2]
[361234488,1747380632577,-500.0,0.00010999,2]
[361234489,1747380632586,-500.0,0.00010999,2]
[361234490,1747380632596,-500.0,0.00010999,2]
[361234491,1747380632605,-500.0,0.00010999,2]
[361234492,1747380632614,-500.0,0.00010999,2]
[361234493,1747380632624,-500.0,0.00010999,2]
[361234494,1747380632634,-500.0,0.00010999,2]
[361234495,1747380632643,-325.00123825,0.00010999,2]
[361234496,1747380632655,-174.99876175,0.00010999,2]
[361234497,1747380632664,-500.0,0.00010999,2]
[361234498,1747380632674,-500.0,0.00010999,2]
[361234499,1747380632683,-500.0,0.00010999,2]
[361234500,1747380632692,-500.0,0.00010999,2]
[361234501,1747380632701,-500.0,0.00010999,2]
[361234502,1747380632711,-518.91093767,0.00010999,2]
[361234503,1747380632720,-375.63131258,0.00010999,2]
[361234504,1747380632732,-124.36868742,0.00010999,2]
[361234505,1747380632746,-500.0,0.00010999,2]
[361234506,1747380632756,-500.0,0.00010999,2]
[361234507,1747380632765,-500.0,0.00010999,2]